Publisher Label,Publisher URI,"Organisational Unit","Beneficiary Name","Payment Date","Amount (£)","Irrecoverable VAT Amount (£)","Purpose","Merchant Category Code"
"Wolverhampton City Council","http://opendatacommunities.org/id/metropolitan-district-council/wolverhampton","Finance","Pret A Manger","05/12/2016","1.46","0.00","Subsistence","5812"
"Wolverhampton City Council","http://opendatacommunities.org/id/metropolitan-district-council/wolverhampton","Finance","Pret A Manger","05/12/2016","6.75","0.00","Subsistence","5812"
"Wolverhampton City Council","http://opendatacommunities.org/id/metropolitan-district-council/wolverhampton","Finance","Pret A Manger","05/12/2016","4.58","0.00","Subsistence","5812"
"Wolverhampton City Council","http://opendatacommunities.org/id/metropolitan-district-council/wolverhampton","Finance","Pret A Manger","05/12/2016","2.16","0.00","Subsistence","5812"
"Wolverhampton City Council","http://opendatacommunities.org/id/metropolitan-district-council/wolverhampton","Finance","Uppercrust","05/12/2016","3.16","0.00","Subsistence","5812"
"Wolverhampton City Council","http://opendatacommunities.org/id/metropolitan-district-council/wolverhampton","Finance","The Post Office","12/12/2016","7.25","0.00","Postage","9402"
"Wolverhampton City Council","http://opendatacommunities.org/id/metropolitan-district-council/wolverhampton","Finance","DHL","15/12/2016","59.81","0.00","Postage","9402"
"Wolverhampton City Council","http://opendatacommunities.org/id/metropolitan-district-council/wolverhampton","Pensions Operations","Coventry City Council","19/12/2016","11.00","0.00","Publications","9399"
"Wolverhampton City Council","http://opendatacommunities.org/id/metropolitan-district-council/wolverhampton","Pensions Operations","Sandwell MBC","19/12/2016","20.00","0.00","Publications","9399"
"Wolverhampton City Council","http://opendatacommunities.org/id/metropolitan-district-council/wolverhampton","Investments","LUL Ticket Machine","14/12/2016","20.00","0.00","Public Transport","4112"
"Wolverhampton City Council","http://opendatacommunities.org/id/metropolitan-district-council/wolverhampton","Investments","Caffe Nero","05/12/2016","1.58","0.00","Subsistence","5812"
"Wolverhampton City Council","http://opendatacommunities.org/id/metropolitan-district-council/wolverhampton","Investments","Caffe Nero","05/12/2016","1.70","0.00","Subsistence","5812"
"Wolverhampton City Council","http://opendatacommunities.org/id/metropolitan-district-council/wolverhampton","Governance","Trainline","05/12/2016","102.61","0.00","Public Transport","4112"
"Wolverhampton City Council","http://opendatacommunities.org/id/metropolitan-district-council/wolverhampton","Governance","Travelodge","06/12/2016","(51.95)","0.00","Accommodation Costs","7011"
"Wolverhampton City Council","http://opendatacommunities.org/id/metropolitan-district-council/wolverhampton","Governance","Marriott","07/12/2016","30.00","0.00","Subsistence","7011"
"Wolverhampton City Council","http://opendatacommunities.org/id/metropolitan-district-council/wolverhampton","Governance","Iceland","08/12/2016","5.15","0.00","Subsistence","5411"
"Wolverhampton City Council","http://opendatacommunities.org/id/metropolitan-district-council/wolverhampton","Finance","Virgin trains","05/12/2016","95.40","0.00","Public Transport","4112"
"Wolverhampton City Council","http://opendatacommunities.org/id/metropolitan-district-council/wolverhampton","Finance","Virgin trains","06/12/2016","42.00","0.00","Public Transport","4112"
"Wolverhampton City Council","http://opendatacommunities.org/id/metropolitan-district-council/wolverhampton","Investments","POD London","07/12/2016","6.66","0.00","Subsistence","5812"
"Wolverhampton City Council","http://opendatacommunities.org/id/metropolitan-district-council/wolverhampton","Investments","Pumpkin Cafe","07/12/2016","4.20","0.00","Subsistence","5812"
"Wolverhampton City Council","http://opendatacommunities.org/id/metropolitan-district-council/wolverhampton","Investments","Uppercrust","07/12/2016","6.44","0.00","Subsistence","5812"
"Wolverhampton City Council","http://opendatacommunities.org/id/metropolitan-district-council/wolverhampton","Investments","West Coast Trains","08/12/2016","7.10","0.00","Public Transport","4112"
"Wolverhampton City Council","http://opendatacommunities.org/id/metropolitan-district-council/wolverhampton","Investments","The Post Office","19/12/2016","1.20","0.00","Postage","9402"
"Wolverhampton City Council","http://opendatacommunities.org/id/metropolitan-district-council/wolverhampton","Governance","West Coast Trains","02/12/2016","170.00","0.00","Public Transport","4112"
"Wolverhampton City Council","http://opendatacommunities.org/id/metropolitan-district-council/wolverhampton","Governance","Iceland","02/12/2016","5.19","0.00","Subsistence","5411"
"Wolverhampton City Council","http://opendatacommunities.org/id/metropolitan-district-council/wolverhampton","Governance","Greggs","02/12/2016","51.10","0.00","Subsistence","5812"
"Wolverhampton City Council","http://opendatacommunities.org/id/metropolitan-district-council/wolverhampton","Governance","Trainline","05/12/2016","98.84","0.00","Public Transport","4112"
"Wolverhampton City Council","http://opendatacommunities.org/id/metropolitan-district-council/wolverhampton","Governance","Greggs","05/12/2016","14.05","0.00","Subsistence","5812"
"Wolverhampton City Council","http://opendatacommunities.org/id/metropolitan-district-council/wolverhampton","Governance","Iceland","05/12/2016","6.09","0.00","Subsistence","5411"
"Wolverhampton City Council","http://opendatacommunities.org/id/metropolitan-district-council/wolverhampton","Governance","Iceland","05/12/2016","3.50","0.00","Subsistence","5411"
"Wolverhampton City Council","http://opendatacommunities.org/id/metropolitan-district-council/wolverhampton","Governance","Greggs","06/12/2016","37.05","0.00","Subsistence","5812"
"Wolverhampton City Council","http://opendatacommunities.org/id/metropolitan-district-council/wolverhampton","Governance","Iceland","19/12/2016","5.94","0.00","Subsistence","5411"
"Wolverhampton City Council","http://opendatacommunities.org/id/metropolitan-district-council/wolverhampton","Governance","Iceland","20/12/2016","10.50","0.00","Subsistence","5411"
"Wolverhampton City Council","http://opendatacommunities.org/id/metropolitan-district-council/wolverhampton","Governance","Poundworld","22/12/2016","7.05","0.00","Equipment - Purchase","5310"
"Wolverhampton City Council","http://opendatacommunities.org/id/metropolitan-district-council/wolverhampton","Finance","Surveymonkey.com","03/12/2016","299.00","0.00","Publications","8999"
"Wolverhampton City Council","http://opendatacommunities.org/id/metropolitan-district-council/wolverhampton","Finance","Riverford","07/12/2016","25.81","0.00","Subsistence","5499"
"Wolverhampton City Council","http://opendatacommunities.org/id/metropolitan-district-council/wolverhampton","Executive","Argos","09/12/2016","4.99","0.00","Equipment - Purchase","5311"
"Wolverhampton City Council","http://opendatacommunities.org/id/metropolitan-district-council/wolverhampton","Executive","Iceland","12/12/2016","5.94","0.00","Subsistence","5411"
"Wolverhampton City Council","http://opendatacommunities.org/id/metropolitan-district-council/wolverhampton","Investments","Riverford","14/12/2016","25.81","0.00","Subsistence","5499"
"Wolverhampton City Council","http://opendatacommunities.org/id/metropolitan-district-council/wolverhampton","Investments","Costa Coffee","17/01/2017","7.75","0.00","Subsistence","5813"
"Wolverhampton City Council","http://opendatacommunities.org/id/metropolitan-district-council/wolverhampton","Investments","Costa Coffee","20/01/2017","3.71","0.00","Subsistence","5813"
"Wolverhampton City Council","http://opendatacommunities.org/id/metropolitan-district-council/wolverhampton","Finance","West Coast Trains","27/01/2017","10.00","0.00","Parking Fees","4112"
"Wolverhampton City Council","http://opendatacommunities.org/id/metropolitan-district-council/wolverhampton","Governance","Novotel","13/01/2017","57.50","0.00","Accommodation Costs","7011"
"Wolverhampton City Council","http://opendatacommunities.org/id/metropolitan-district-council/wolverhampton","Governance","Novotel","24/01/2017","13.95","0.00","Subsistence","7011"
"Wolverhampton City Council","http://opendatacommunities.org/id/metropolitan-district-council/wolverhampton","Pensions Operations","Ritazza","25/01/2017","3.29","0.00","Subsistence","5813"
"Wolverhampton City Council","http://opendatacommunities.org/id/metropolitan-district-council/wolverhampton","Pensions Operations","WH Smith","25/01/2017","3.04","0.00","Subsistence","5994"
"Wolverhampton City Council","http://opendatacommunities.org/id/metropolitan-district-council/wolverhampton","Investments","Blueberry Food Company","20/01/2017","30.80","0.00","Subsistence","5812"
"Wolverhampton City Council","http://opendatacommunities.org/id/metropolitan-district-council/wolverhampton","Investments","West Coast Trains","20/01/2017","7.50","0.00","Parking Fees","4112"
"Wolverhampton City Council","http://opendatacommunities.org/id/metropolitan-district-council/wolverhampton","Investments","Costa Coffee","31/01/2017","4.00","0.00","Subsistence","5813"
"Wolverhampton City Council","http://opendatacommunities.org/id/metropolitan-district-council/wolverhampton","Investments","Costa Coffee","31/01/2017","3.30","0.00","Subsistence","5813"
"Wolverhampton City Council","http://opendatacommunities.org/id/metropolitan-district-council/wolverhampton","Investments","West Coast Trains","31/01/2017","7.50","0.00","Parking Fees","4112"
"Wolverhampton City Council","http://opendatacommunities.org/id/metropolitan-district-council/wolverhampton","Governance","Riverford","04/01/2017","25.81","0.00","Subsistence","5499"
"Wolverhampton City Council","http://opendatacommunities.org/id/metropolitan-district-council/wolverhampton","Governance","Riverford","11/01/2017","25.81","0.00","Subsistence","5499"
"Wolverhampton City Council","http://opendatacommunities.org/id/metropolitan-district-council/wolverhampton","Governance","Iceland","16/01/2017","5.94","0.00","Subsistence","5411"
"Wolverhampton City Council","http://opendatacommunities.org/id/metropolitan-district-council/wolverhampton","Governance","Amazon","17/01/2017","19.98","0.00","Equipment - Purchase","5942"
"Wolverhampton City Council","http://opendatacommunities.org/id/metropolitan-district-council/wolverhampton","Governance","Riverford","18/01/2017","25.81","0.00","Subsistence","5499"
"Wolverhampton City Council","http://opendatacommunities.org/id/metropolitan-district-council/wolverhampton","Governance","Amazon","17/01/2017","8.35","0.00","Equipment - Purchase","5942"
"Wolverhampton City Council","http://opendatacommunities.org/id/metropolitan-district-council/wolverhampton","Governance","Riverford","25/01/2017","25.81","0.00","Subsistence","5499"
"Wolverhampton City Council","http://opendatacommunities.org/id/metropolitan-district-council/wolverhampton","Governance","Riverford","01/02/2017","25.81","0.00","Subsistence","5499"
"Wolverhampton City Council","http://opendatacommunities.org/id/metropolitan-district-council/wolverhampton","Executive","Taylor St Baristas","18/01/2017","4.22","0.00","Subsistence","5813"
"Wolverhampton City Council","http://opendatacommunities.org/id/metropolitan-district-council/wolverhampton","Executive","Costa Coffee","19/01/2017","3.54","0.00","Subsistence","5813"
"Wolverhampton City Council","http://opendatacommunities.org/id/metropolitan-district-council/wolverhampton","Executive","Minories","23/01/2017","3.50","0.00","Subsistence","5812"
"Wolverhampton City Council","http://opendatacommunities.org/id/metropolitan-district-council/wolverhampton","Executive","Ritazza","23/01/2017","6.36","0.00","Subsistence","5813"
"Wolverhampton City Council","http://opendatacommunities.org/id/metropolitan-district-council/wolverhampton","Executive","Pumpkin Caf�","27/01/2017","5.88","0.00","Subsistence","5812"
"Wolverhampton City Council","http://opendatacommunities.org/id/metropolitan-district-council/wolverhampton","Executive","LUL Ticket Machine","27/01/2017","50.00","0.00","Public Transport","4112"
"Wolverhampton City Council","http://opendatacommunities.org/id/metropolitan-district-council/wolverhampton","Executive","Pret A Manger","27/01/2017","7.16","0.00","Subsistence","5812"
"Wolverhampton City Council","http://opendatacommunities.org/id/metropolitan-district-council/wolverhampton","Pensions Operations","Birmingham City Council","04/01/2017","25.00","0.00","Publications","9399"
"Wolverhampton City Council","http://opendatacommunities.org/id/metropolitan-district-council/wolverhampton","Pensions Operations","Birmingham City Council","06/01/2017","(3.00)","0.00","Publications","9399"
"Wolverhampton City Council","http://opendatacommunities.org/id/metropolitan-district-council/wolverhampton","Pensions Operations","Walsall MBC","25/01/2017","12.00","0.00","Publications","9399"
"Wolverhampton City Council","http://opendatacommunities.org/id/metropolitan-district-council/wolverhampton","Pensions Operations","Birmingham City Council","25/01/2017","15.00","0.00","Publications","9399"
"Wolverhampton City Council","http://opendatacommunities.org/id/metropolitan-district-council/wolverhampton","Pensions Operations","Birmingham City Council","25/01/2017","20.00","0.00","Publications","9399"
"Wolverhampton City Council","http://opendatacommunities.org/id/metropolitan-district-council/wolverhampton","Pensions Operations","Birmingham City Council","26/01/2017","11.00","0.00","Publications","9399"
"Wolverhampton City Council","http://opendatacommunities.org/id/metropolitan-district-council/wolverhampton","Pensions Operations","Birmingham City Council","27/01/2017","(10.00)","0.00","Publications","9399"
"Wolverhampton City Council","http://opendatacommunities.org/id/metropolitan-district-council/wolverhampton","Pensions Operations","Birmingham City Council","01/02/2017","20.00","0.00","Publications","9399"
"Wolverhampton City Council","http://opendatacommunities.org/id/metropolitan-district-council/wolverhampton","Investments","Selfserve Ticket","10/01/2017","20.00","0.00","Public Transport","4112"
"Wolverhampton City Council","http://opendatacommunities.org/id/metropolitan-district-council/wolverhampton","Investments","Pret A Manger","17/01/2017","3.20","0.00","Subsistence","5812"
"Wolverhampton City Council","http://opendatacommunities.org/id/metropolitan-district-council/wolverhampton","Investments","LUL Ticket Machine","26/01/2017","30.00","0.00","Public Transport","4112"
"Wolverhampton City Council","http://opendatacommunities.org/id/metropolitan-district-council/wolverhampton","Governance","Groupon","04/01/2017","22.00","0.00","Training","8299"
"Wolverhampton City Council","http://opendatacommunities.org/id/metropolitan-district-council/wolverhampton","Governance","Virgin trains","16/01/2017","40.00","0.00","Public Transport","4112"
"Wolverhampton City Council","http://opendatacommunities.org/id/metropolitan-district-council/wolverhampton","Governance","Virgin trains","16/01/2017","96.00","0.00","Public Transport","4112"
"Wolverhampton City Council","http://opendatacommunities.org/id/metropolitan-district-council/wolverhampton","Governance","Virgin trains","16/01/2017","65.00","0.00","Public Transport","4112"
"Wolverhampton City Council","http://opendatacommunities.org/id/metropolitan-district-council/wolverhampton","Governance","Virgin trains","16/01/2017","36.00","0.00","Public Transport","4112"
"Wolverhampton City Council","http://opendatacommunities.org/id/metropolitan-district-council/wolverhampton","Governance","Virgin trains","16/01/2017","77.00","0.00","Public Transport","4112"
"Wolverhampton City Council","http://opendatacommunities.org/id/metropolitan-district-council/wolverhampton","Governance","Oyster","16/01/2017","40.00","0.00","Public Transport","4112"
"Wolverhampton City Council","http://opendatacommunities.org/id/metropolitan-district-council/wolverhampton","Governance","Oyster","16/01/2017","50.00","0.00","Public Transport","4112"
"Wolverhampton City Council","http://opendatacommunities.org/id/metropolitan-district-council/wolverhampton","Governance","London Midland","16/01/2017","86.00","0.00","Public Transport","4112"
"Wolverhampton City Council","http://opendatacommunities.org/id/metropolitan-district-council/wolverhampton","Governance","Roller Banners","17/01/2017","111.99","0.00","Printing","2741"
"Wolverhampton City Council","http://opendatacommunities.org/id/metropolitan-district-council/wolverhampton","Governance","Oyster","18/01/2017","45.00","0.00","Public Transport","4112"
"Wolverhampton City Council","http://opendatacommunities.org/id/metropolitan-district-council/wolverhampton","Governance","ISSUU","27/01/2017","15.60","0.00","Subscriptions","4816"
"Wolverhampton City Council","http://opendatacommunities.org/id/metropolitan-district-council/wolverhampton","Investments","West Coast Trains","19/01/2017","7.50","0.00","Parking Fees","4112"
"Wolverhampton City Council","http://opendatacommunities.org/id/metropolitan-district-council/wolverhampton","Investments","Past Shop Barrierline","19/01/2017","6.49","0.00","Subsistence","5812"
"Wolverhampton City Council","http://opendatacommunities.org/id/metropolitan-district-council/wolverhampton","Investments","Cross Country","20/01/2017","5.33","0.00","Subsistence","4112"
"Wolverhampton City Council","http://opendatacommunities.org/id/metropolitan-district-council/wolverhampton","Investments","West Coast Trains","20/01/2017","7.50","0.00","Parking Fees","4112"
"Wolverhampton City Council","http://opendatacommunities.org/id/metropolitan-district-council/wolverhampton","Investments","West Coast Trains","31/01/2017","7.50","0.00","Parking Fees","4112"
"Wolverhampton City Council","http://opendatacommunities.org/id/metropolitan-district-council/wolverhampton","Investments","Atelier Vivanda Paris","09/01/2017","32.40","0.00","Subsistence","7011"
"Wolverhampton City Council","http://opendatacommunities.org/id/metropolitan-district-council/wolverhampton","Investments","Hotel California Paris","10/01/2017","195.71","0.00","Accommodation Costs","7011"
"Wolverhampton City Council","http://opendatacommunities.org/id/metropolitan-district-council/wolverhampton","Investments","LA Caixa","11/01/2017","183.56","0.00","Bank Charges","6012"
"Wolverhampton City Council","http://opendatacommunities.org/id/metropolitan-district-council/wolverhampton","Investments","Cash Advance fee","12/01/2017","5.42","0.00","Bank Charges","6012"
"Wolverhampton City Council","http://opendatacommunities.org/id/metropolitan-district-council/wolverhampton","Investments","El Asador De Aranda Barcelona","11/01/2017","37.35","0.00","Subsistence","5812"
"Wolverhampton City Council","http://opendatacommunities.org/id/metropolitan-district-council/wolverhampton","Investments","Taxi Ganjehe & Fuchs G","11/01/2017","44.73","0.00","Public Transport","4121"
"Wolverhampton City Council","http://opendatacommunities.org/id/metropolitan-district-council/wolverhampton","Investments","Air France","10/01/2017","31.32","0.00","Public Transport","4511"
"Wolverhampton City Council","http://opendatacommunities.org/id/metropolitan-district-council/wolverhampton","Investments","Muenchen Park","11/01/2017","45.74","0.00","Subsistence","5812"
"Wolverhampton City Council","http://opendatacommunities.org/id/metropolitan-district-council/wolverhampton","Investments","Taxiruf-lev3333.de","11/01/2017","49.33","0.00","Public Transport","4121"
"Wolverhampton City Council","http://opendatacommunities.org/id/metropolitan-district-council/wolverhampton","Investments","Lakasa","12/01/2017","31.51","0.00","Subsistence","5812"
"Wolverhampton City Council","http://opendatacommunities.org/id/metropolitan-district-council/wolverhampton","Investments","Barcelona Hilton - Barcelona","13/01/2017","200.97","0.00","Accommodation Costs","7011"
"Wolverhampton City Council","http://opendatacommunities.org/id/metropolitan-district-council/wolverhampton","Investments","Lufthansa","10/01/2017","27.01","0.00","Public Transport","4511"
"Wolverhampton City Council","http://opendatacommunities.org/id/metropolitan-district-council/wolverhampton","Investments","Lufthansa","11/01/2017","27.01","0.00","Public Transport","4511"
"Wolverhampton City Council","http://opendatacommunities.org/id/metropolitan-district-council/wolverhampton","Investments","Financial times","17/01/2017","97.50","0.00","Subscriptions","5192"
"Wolverhampton City Council","http://opendatacommunities.org/id/metropolitan-district-council/wolverhampton","Governance","Iceland","04/01/2017","5.80","0.00","Subsistence","5411"
"Wolverhampton City Council","http://opendatacommunities.org/id/metropolitan-district-council/wolverhampton","Governance","West Coast Trains","05/01/2017","139.50","0.00","Public Transport","4112"
"Wolverhampton City Council","http://opendatacommunities.org/id/metropolitan-district-council/wolverhampton","Governance","Virgin Trains","09/01/2017","201.00","0.00","Public Transport","4112"
"Wolverhampton City Council","http://opendatacommunities.org/id/metropolitan-district-council/wolverhampton","Governance","Poundworld","09/01/2017","1.67","0.00","Equipment - Purchase","5310"
"Wolverhampton City Council","http://opendatacommunities.org/id/metropolitan-district-council/wolverhampton","Governance","Iceland","09/01/2017","5.94","0.00","Subsistence","5411"
"Wolverhampton City Council","http://opendatacommunities.org/id/metropolitan-district-council/wolverhampton","Governance","Iceland","09/01/2017","2.00","0.00","Subsistence","5411"
"Wolverhampton City Council","http://opendatacommunities.org/id/metropolitan-district-council/wolverhampton","Governance","West Coast Trains","10/01/2017","218.00","0.00","Public Transport","4112"
"Wolverhampton City Council","http://opendatacommunities.org/id/metropolitan-district-council/wolverhampton","Governance","Virgin Trains","12/01/2017","140.00","0.00","Public Transport","4112"
"Wolverhampton City Council","http://opendatacommunities.org/id/metropolitan-district-council/wolverhampton","Governance","Virgin Trains","12/01/2017","209.00","0.00","Public Transport","4112"
"Wolverhampton City Council","http://opendatacommunities.org/id/metropolitan-district-council/wolverhampton","Governance","Poundland","12/01/2017","3.00","0.00","Equipment - Purchase","5310"
"Wolverhampton City Council","http://opendatacommunities.org/id/metropolitan-district-council/wolverhampton","Governance","Poundworld","12/01/2017","3.00","0.00","Subsistence","5310"
"Wolverhampton City Council","http://opendatacommunities.org/id/metropolitan-district-council/wolverhampton","Governance","Poundworld","12/01/2017","5.00","0.00","Subsistence","5310"
"Wolverhampton City Council","http://opendatacommunities.org/id/metropolitan-district-council/wolverhampton","Governance","Greggs","12/01/2017","38.75","0.00","Subsistence","5812"
"Wolverhampton City Council","http://opendatacommunities.org/id/metropolitan-district-council/wolverhampton","Governance","London Midland","12/01/2017","9.40","0.00","Public Transport","4112"
"Wolverhampton City Council","http://opendatacommunities.org/id/metropolitan-district-council/wolverhampton","Governance","West Coast Trains","12/01/2017","258.70","0.00","Public Transport","4112"
"Wolverhampton City Council","http://opendatacommunities.org/id/metropolitan-district-council/wolverhampton","Governance","Iceland","12/01/2017","4.39","0.00","Subsistence","5411"
"Wolverhampton City Council","http://opendatacommunities.org/id/metropolitan-district-council/wolverhampton","Governance","Iceland","12/01/2017","1.75","0.00","Subsistence","5411"
"Wolverhampton City Council","http://opendatacommunities.org/id/metropolitan-district-council/wolverhampton","Governance","Virgin Trains","13/01/2017","91.00","0.00","Public Transport","4112"
"Wolverhampton City Council","http://opendatacommunities.org/id/metropolitan-district-council/wolverhampton","Governance","West Coast Trains","13/01/2017","358.00","0.00","Public Transport","4112"
"Wolverhampton City Council","http://opendatacommunities.org/id/metropolitan-district-council/wolverhampton","Governance","Greggs","18/01/2017","76.65","0.00","Subsistence","5812"
"Wolverhampton City Council","http://opendatacommunities.org/id/metropolitan-district-council/wolverhampton","Governance","West Coast Trains","18/01/2017","170.40","0.00","Public Transport","4112"
"Wolverhampton City Council","http://opendatacommunities.org/id/metropolitan-district-council/wolverhampton","Governance","Iceland","18/01/2017","5.00","0.00","Subsistence","5411"
"Wolverhampton City Council","http://opendatacommunities.org/id/metropolitan-district-council/wolverhampton","Governance","Maplin","19/01/2017","7.98","0.00","Equipment - Purchase","5943"
"Wolverhampton City Council","http://opendatacommunities.org/id/metropolitan-district-council/wolverhampton","Governance","Iceland","19/01/2017","2.43","0.00","Subsistence","5411"
"Wolverhampton City Council","http://opendatacommunities.org/id/metropolitan-district-council/wolverhampton","Governance","Iceland","19/01/2017","2.00","0.00","Subsistence","5411"
"Wolverhampton City Council","http://opendatacommunities.org/id/metropolitan-district-council/wolverhampton","Governance","hotels.com","23/01/2017","280.02","0.00","Accommodation Costs","7011"
"Wolverhampton City Council","http://opendatacommunities.org/id/metropolitan-district-council/wolverhampton","Governance","Virgin Trains","23/01/2017","123.00","0.00","Public Transport","4112"
"Wolverhampton City Council","http://opendatacommunities.org/id/metropolitan-district-council/wolverhampton","Governance","Virgin Trains","23/01/2017","176.00","0.00","Public Transport","4112"
"Wolverhampton City Council","http://opendatacommunities.org/id/metropolitan-district-council/wolverhampton","Governance","Virgin Trains","23/01/2017","5.60","0.00","Public Transport","4112"
"Wolverhampton City Council","http://opendatacommunities.org/id/metropolitan-district-council/wolverhampton","Governance","Virgin Trains","23/01/2017","176.00","0.00","Public Transport","4112"
"Wolverhampton City Council","http://opendatacommunities.org/id/metropolitan-district-council/wolverhampton","Governance","Virgin Trains","23/01/2017","113.00","0.00","Public Transport","4112"
"Wolverhampton City Council","http://opendatacommunities.org/id/metropolitan-district-council/wolverhampton","Governance","Oyster","23/01/2017","45.00","0.00","Public Transport","4112"
"Wolverhampton City Council","http://opendatacommunities.org/id/metropolitan-district-council/wolverhampton","Governance","West Coast Trains","23/01/2017","29.00","0.00","Public Transport","4112"
"Wolverhampton City Council","http://opendatacommunities.org/id/metropolitan-district-council/wolverhampton","Governance","Iceland","23/01/2017","6.09","0.00","Subsistence","5411"
"Wolverhampton City Council","http://opendatacommunities.org/id/metropolitan-district-council/wolverhampton","Governance","ryman","23/01/2017","39.97","0.00","Stationery","5943"
"Wolverhampton City Council","http://opendatacommunities.org/id/metropolitan-district-council/wolverhampton","Governance","virgintrains.co.uk","23/01/2017","(45.00)","0.00","Public Transport","4112"
"Wolverhampton City Council","http://opendatacommunities.org/id/metropolitan-district-council/wolverhampton","Governance","virgin trains","25/01/2017","230.00","0.00","Public Transport","4112"
"Wolverhampton City Council","http://opendatacommunities.org/id/metropolitan-district-council/wolverhampton","Governance","West Coast Trains","30/01/2017","113.60","0.00","Public Transport","4112"
"Wolverhampton City Council","http://opendatacommunities.org/id/metropolitan-district-council/wolverhampton","Governance","West Coast Trains","30/01/2017","47.80","0.00","Public Transport","4112"
"Wolverhampton City Council","http://opendatacommunities.org/id/metropolitan-district-council/wolverhampton","Governance","west Coast Trains","30/01/2017","(47.80)","0.00","Public Transport","4112"
"Wolverhampton City Council","http://opendatacommunities.org/id/metropolitan-district-council/wolverhampton","Governance","trainline","31/01/2017","77.21","0.00","Public Transport","4112"
"Wolverhampton City Council","http://opendatacommunities.org/id/metropolitan-district-council/wolverhampton","Governance","Poundworld","31/01/2017","0.83","0.00","Equipment - Purchase","5310"
"Wolverhampton City Council","http://opendatacommunities.org/id/metropolitan-district-council/wolverhampton","Governance","Scotrail","01/02/2017","28.20","0.00","Public Transport","4112"
"Wolverhampton City Council","http://opendatacommunities.org/id/metropolitan-district-council/wolverhampton","Governance","Virgin Trains","01/02/2017","37.50","0.00","Public Transport","4112"
"Wolverhampton City Council","http://opendatacommunities.org/id/metropolitan-district-council/wolverhampton","Governance","West Coast Trains","01/02/2017","105.00","0.00","Public Transport","4112"
"Wolverhampton City Council","http://opendatacommunities.org/id/metropolitan-district-council/wolverhampton","Governance","Poundworld","02/02/2017","2.00","0.00","Equipment - Purchase","5310"
"Wolverhampton City Council","http://opendatacommunities.org/id/metropolitan-district-council/wolverhampton","Governance","Greggs","02/02/2017","37.90","0.00","Subsistence","5812"
"Wolverhampton City Council","http://opendatacommunities.org/id/metropolitan-district-council/wolverhampton","Governance","Iceland","02/02/2017","2.55","0.00","Subsistence","5411"
"Wolverhampton City Council","http://opendatacommunities.org/id/metropolitan-district-council/wolverhampton","Investments","West Coast Trains","06/02/2017","2.80","0.00","Subsistence","4112"
"Wolverhampton City Council","http://opendatacommunities.org/id/metropolitan-district-council/wolverhampton","Investments","Virgin Trains","05/02/2017","182.00","0.00","Public Transport","4112"
"Wolverhampton City Council","http://opendatacommunities.org/id/metropolitan-district-council/wolverhampton","Investments","West Coast Trains","06/02/2017","7.50","0.00","Parking Fees","4112"
"Wolverhampton City Council","http://opendatacommunities.org/id/metropolitan-district-council/wolverhampton","Investments","Virgin Trains","28/02/2017","182.00","0.00","Public Transport","4112"
"Wolverhampton City Council","http://opendatacommunities.org/id/metropolitan-district-council/wolverhampton","Investments","West Coast Trains","01/03/2017","7.50","0.00","Parking Fees","4112"
"Wolverhampton City Council","http://opendatacommunities.org/id/metropolitan-district-council/wolverhampton","Investments","Past Shop Barrierline","01/03/2017","6.49","0.00","Subsistence","5812"
"Wolverhampton City Council","http://opendatacommunities.org/id/metropolitan-district-council/wolverhampton","Executive","Costa Coffee","15/02/2017","2.46","0.00","Subsistence","5813"
"Wolverhampton City Council","http://opendatacommunities.org/id/metropolitan-district-council/wolverhampton","Executive","Costa Coffee","15/02/2017","1.65","0.00","Subsistence","5813"
"Wolverhampton City Council","http://opendatacommunities.org/id/metropolitan-district-council/wolverhampton","Executive","Costa Coffee","20/02/2017","2.21","0.00","Subsistence","5813"
"Wolverhampton City Council","http://opendatacommunities.org/id/metropolitan-district-council/wolverhampton","Executive","Costa Coffee","20/02/2017","1.65","0.00","Subsistence","5813"
"Wolverhampton City Council","http://opendatacommunities.org/id/metropolitan-district-council/wolverhampton","Executive","Ritazza","02/02/2017","2.71","0.00","Subsistence","5813"
"Wolverhampton City Council","http://opendatacommunities.org/id/metropolitan-district-council/wolverhampton","Executive","Ritazza","02/02/2017","4.49","0.00","Subsistence","5813"
"Wolverhampton City Council","http://opendatacommunities.org/id/metropolitan-district-council/wolverhampton","Executive","Gourmet Coffee bar","22/02/2017","3.71","0.00","Subsistence","5812"
"Wolverhampton City Council","http://opendatacommunities.org/id/metropolitan-district-council/wolverhampton","Executive","Gourmet Coffee bar","22/02/2017","1.55","0.00","Subsistence","5812"
"Wolverhampton City Council","http://opendatacommunities.org/id/metropolitan-district-council/wolverhampton","Investments","West Coast Trains","01/03/2017","6.50","0.00","Subsistence","4112"
"Wolverhampton City Council","http://opendatacommunities.org/id/metropolitan-district-council/wolverhampton","Investments","LUL Ticket Machine","01/03/2017","30.00","0.00","Public Transport","4112"
"Wolverhampton City Council","http://opendatacommunities.org/id/metropolitan-district-council/wolverhampton","Investments","West Coast Trains","01/02/2017","7.50","0.00","Parking Fees","4112"
"Wolverhampton City Council","http://opendatacommunities.org/id/metropolitan-district-council/wolverhampton","Investments","LUL TICKET MACHINE","09/02/2017","12.30","0.00","Public Transport","4112"
"Wolverhampton City Council","http://opendatacommunities.org/id/metropolitan-district-council/wolverhampton","Investments","West Coast Trains","17/02/2017","3.08","0.00","Subsistence","4112"
"Wolverhampton City Council","http://opendatacommunities.org/id/metropolitan-district-council/wolverhampton","Investments","POD","17/02/2017","5.83","0.00","Subsistence","5812"
"Wolverhampton City Council","http://opendatacommunities.org/id/metropolitan-district-council/wolverhampton","Governance","Tesco","05/02/2017","6.00","0.00","Subsistence","5411"
"Wolverhampton City Council","http://opendatacommunities.org/id/metropolitan-district-council/wolverhampton","Governance","Greggs","07/02/2017","3.65","0.00","Subsistence","5812"
"Wolverhampton City Council","http://opendatacommunities.org/id/metropolitan-district-council/wolverhampton","Governance","Greggs","06/02/2017","3.65","0.00","Subsistence","5812"
"Wolverhampton City Council","http://opendatacommunities.org/id/metropolitan-district-council/wolverhampton","Governance","Amazon","08/02/2017","33.96","0.00","Equipment - Purchase","5942"
"Wolverhampton City Council","http://opendatacommunities.org/id/metropolitan-district-council/wolverhampton","Governance","Riverford","08/02/2017","25.81","0.00","Subsistence","5499"
"Wolverhampton City Council","http://opendatacommunities.org/id/metropolitan-district-council/wolverhampton","Governance","Amazon","09/02/2017","44.70","0.00","Equipment - Purchase","5942"
"Wolverhampton City Council","http://opendatacommunities.org/id/metropolitan-district-council/wolverhampton","Governance","Amazon","15/02/2017","33.96","0.00","Equipment - Purchase","5942"
"Wolverhampton City Council","http://opendatacommunities.org/id/metropolitan-district-council/wolverhampton","Governance","Riverford","15/02/2017","25.81","0.00","Subsistence","5499"
"Wolverhampton City Council","http://opendatacommunities.org/id/metropolitan-district-council/wolverhampton","Governance","Amazon","21/02/2017","16.98","0.00","Equipment - Purchase","5942"
"Wolverhampton City Council","http://opendatacommunities.org/id/metropolitan-district-council/wolverhampton","Governance","Riverford","22/02/2017","25.81","0.00","Subsistence","5499"
"Wolverhampton City Council","http://opendatacommunities.org/id/metropolitan-district-council/wolverhampton","Governance","Riverford","01/03/2017","25.81","0.00","Subsistence","5499"
"Wolverhampton City Council","http://opendatacommunities.org/id/metropolitan-district-council/wolverhampton","Finance","West Coast Trains","09/02/2017","10.00","0.00","Parking Fees","4112"
"Wolverhampton City Council","http://opendatacommunities.org/id/metropolitan-district-council/wolverhampton","Investments","West Coast Trains","16/02/2017","54.10","0.00","Public Transport","4112"
"Wolverhampton City Council","http://opendatacommunities.org/id/metropolitan-district-council/wolverhampton","Investments","Taylor St Baristas","17/02/2017","4.42","0.00","Subsistence","5813"
"Wolverhampton City Council","http://opendatacommunities.org/id/metropolitan-district-council/wolverhampton","Investments","Panini Guisto","17/02/2017","2.92","0.00","Subsistence","5812"
"Wolverhampton City Council","http://opendatacommunities.org/id/metropolitan-district-council/wolverhampton","Investments","Panini Guisto","17/02/2017","0.44","0.00","Subsistence","5812"
"Wolverhampton City Council","http://opendatacommunities.org/id/metropolitan-district-council/wolverhampton","Investments","West Coast Trains","20/02/2017","6.40","0.00","Subsistence","4112"
"Wolverhampton City Council","http://opendatacommunities.org/id/metropolitan-district-council/wolverhampton","Investments","West Coast Trains","20/02/2017","91.00","0.00","Public Transport","4112"
"Wolverhampton City Council","http://opendatacommunities.org/id/metropolitan-district-council/wolverhampton","Governance","Trainline","28/02/2017","94.35","0.00","Public Transport","4112"
"Wolverhampton City Council","http://opendatacommunities.org/id/metropolitan-district-council/wolverhampton","Governance","Trainline","28/02/2017","34.43","0.00","Public Transport","4112"
"Wolverhampton City Council","http://opendatacommunities.org/id/metropolitan-district-council/wolverhampton","Governance","virgin trains","01/03/2017","30.00","0.00","Public Transport","4112"
"Wolverhampton City Council","http://opendatacommunities.org/id/metropolitan-district-council/wolverhampton","Governance","virgin trains","01/03/2017","91.00","0.00","Public Transport","4112"
"Wolverhampton City Council","http://opendatacommunities.org/id/metropolitan-district-council/wolverhampton","Governance","virgin trains","01/03/2017","158.00","0.00","Public Transport","4112"
"Wolverhampton City Council","http://opendatacommunities.org/id/metropolitan-district-council/wolverhampton","Governance","Cross Country Trains","08/02/2017","175.30","0.00","Public Transport","4112"
"Wolverhampton City Council","http://opendatacommunities.org/id/metropolitan-district-council/wolverhampton","Governance","Hotels.com","08/02/2017","182.32","0.00","Accommodation Costs","7011"
"Wolverhampton City Council","http://opendatacommunities.org/id/metropolitan-district-council/wolverhampton","Governance","Premier Inn","07/02/2017","222.00","0.00","Accommodation Costs","7011"
"Wolverhampton City Council","http://opendatacommunities.org/id/metropolitan-district-council/wolverhampton","Governance","Premier Inn","07/02/2017","172.00","0.00","Accommodation Costs","7011"
"Wolverhampton City Council","http://opendatacommunities.org/id/metropolitan-district-council/wolverhampton","Governance","LOVE2SHOP.CO.UK","08/02/2017","100.00","0.00","Equipment - Purchase","5399"
"Wolverhampton City Council","http://opendatacommunities.org/id/metropolitan-district-council/wolverhampton","Governance","AMAZON","09/02/2017","26.95","0.00","Equipment - Purchase","5942"
"Wolverhampton City Council","http://opendatacommunities.org/id/metropolitan-district-council/wolverhampton","Governance","CENTRO HOUSE","13/02/2017","638.00","0.00","Subscriptions","4112"
"Wolverhampton City Council","http://opendatacommunities.org/id/metropolitan-district-council/wolverhampton","Governance","1&1 INTERNET LTD","20/02/2017","53.50","0.00","Computing Internet","4816"
"Wolverhampton City Council","http://opendatacommunities.org/id/metropolitan-district-council/wolverhampton","Governance","ISUU","27/02/2017","15.78","0.00","Subscriptions","5192"
